bitfinex-derivatives/quotes_BTCF0:USTF0_20241109
["timestamp","ask_amount","ask_price","bid_price","bid_amount"]
[1731150753537,0.0122,76486.0,76485.0,0.14717284]
[1731150753538,0.03743746,76486.0,76485.0,0.14717284]
[1731150753739,0.1807814,76486.0,76485.0,0.14717284]
[1731150754037,0.21277588,76486.0,76485.0,0.14717284]
[1731150754341,0.10953485,76486.0,76485.0,0.074529]
[1731150754535,0.10953485,76486.0,76485.0,0.041329]
[1731150755039,0.1807814,76486.0,76485.0,0.041329]
[1731150755244,0.21277588,76486.0,76485.0,0.041329]
[1731150755537,0.03743746,76486.0,76485.0,0.041329]
[1731150755742,0.10953485,76486.0,76485.0,0.041329]
[1731150756038,0.03743746,76486.0,76485.0,0.041329]
[1731150756230,0.06943194,76486.0,76485.0,0.041329]
[1731150756436,0.03743746,76486.0,76485.0,0.041329]
[1731150756632,0.10953485,76486.0,76485.0,0.041329]
[1731150759142,0.10953485,76486.0,76485.0,0.02712043]
[1731150760444,0.10953485,76486.0,76485.0,0.19888947]
[1731150760445,0.0122,76486.0,76485.0,0.19888947]
[1731150761148,0.0122,76486.0,76485.0,0.1204817]
[1731150762241,0.0122,76486.0,76485.0,0.19888947]
[1731150762542,0.0122,76486.0,76485.0,0.1204817]
[1731150762948,0.0122,76486.0,76485.0,0.19888947]
[1731150764048,0.0122,76486.0,76485.0,0.1204817]
[1731150765344,0.0122,76486.0,76485.0,0.09336127]
[1731150765848,0.0122,76486.0,76485.0,0.15869027]
[1731150768442,0.0122,76486.0,76485.0,0.2240346]
[1731150768640,0.0122,76486.0,76485.0,0.13067333]
[1731150768941,0.0122,76486.0,76485.0,0.065329]
[1731150769145,0.0122,76486.0,76485.0,0.13067333]
[1731150769343,0.0122,76486.0,76485.0,0.065329]
[1731150775648,0.03743823,76486.0,76485.0,0.065329]
[1731150775849,0.10953783,76486.0,76485.0,0.065329]
[1731150778553,0.10953807,76486.0,76485.0,0.065329]
[1731150780255,0.10953807,76486.0,76485.0,0.063329]
[1731150783660,0.0122,76486.0,76485.0,0.063329]
[1731150790668,0.06943383,76486.0,76485.0,0.063329]
[1731150792961,0.0122,76486.0,76485.0,0.063329]
[1731150793170,0.10953807,76486.0,76485.0,0.063329]
[1731150794872,0.10953807,76486.0,76485.0,0.13597284]
[1731150797662,0.0122,76486.0,76485.0,0.20131717]
[1731150798473,0.0122,76486.0,76485.0,0.2223719]
[1731150798673,0.0122,76486.0,76485.0,0.29501574]
[1731150801665,0.0122,76486.0,76485.0,0.22967141]
[1731150801874,0.0122,76486.0,76485.0,0.29503908]
[1731150802068,0.0122,76486.0,76485.0,0.22967141]
[1731150802264,0.0122,76486.0,76485.0,0.29503921]
[1731150802670,0.0122,76486.0,76485.0,0.22967141]
[1731150803564,0.0122,76486.0,76485.0,0.29503951]
[1731150805876,0.0122,76486.0,76485.0,0.29492524]
[1731150806074,0.0122,76486.0,76485.0,0.29492489]
[1731150806262,0.0122,76486.0,76485.0,0.22955679]
[1731150810580,0.0122,76486.0,76485.0,0.22958029]
[1731150812677,0.03743814,76486.0,76485.0,0.13597284]
[1731150812878,0.06943349,76486.0,76485.0,0.13597284]
[1731150813274,0.07754214,76486.0,76485.0,0.13597284]
[1731150813575,0.03743814,76486.0,76485.0,0.13597284]
[1731150813777,0.06943349,76486.0,76485.0,0.13597284]
[1731150813978,0.07754214,76486.0,76485.0,0.13597284]
[1731150814278,0.06943349,76486.0,76485.0,0.13597284]
[1731150814580,0.10953749,76486.0,76485.0,0.13797284]
[1731150816286,0.18084361,76486.0,76485.0,0.13797284]
[1731150816679,0.21283896,76486.0,76485.0,0.13797284]
[1731150816885,0.25294296,76486.0,76485.0,0.13797284]
[1731150817187,0.10953749,76486.0,76485.0,0.13797284]
[1731150817785,0.10953749,76486.0,76485.0,0.49877284]
[1731150820482,0.10953749,76486.0,76485.0,0.13797284]
[1731150820695,0.0122,76486.0,76485.0,0.59263282]
[1731150821388,0.0122,76486.0,76485.0,0.23183282]
[1731150821690,0.0122,76486.0,76485.0,0.59263282]
[1731150821887,0.0122,76486.0,76485.0,0.51998898]
[1731150822193,0.0122,76486.0,76485.0,0.59263282]
[1731150827693,0.10953541,76486.0,76485.0,0.49877284]
[1731150833806,0.0122,76486.0,76485.0,0.49877284]
[1731150842012,0.0122,76486.0,76485.0,0.426129]
[1731150850711,0.1808419,76486.0,76485.0,0.426129]
[1731150851011,0.25293764,76486.0,76485.0,0.426129]
[1731150851502,0.15560502,76486.0,76485.0,0.426129]
[1731150851912,0.0122,76486.0,76485.0,0.426129]
[1731150854417,0.0122,76486.0,76485.0,0.46534465]
[1731150854718,0.0122,76486.0,76485.0,0.426129]
[1731150857211,0.0122,76486.0,76485.0,0.065329]
[1731150857420,0.0122,76486.0,76485.0,0.426129]
[1731150860721,0.0122,76486.0,76485.0,0.47841427]
[1731150862225,0.0122,76486.0,76485.0,0.49877284]
[1731150862520,0.0312,76500.0,76499.0,0.065317]
[1731150866519,0.0312,76500.0,76497.0,0.32153152]
[1731150866520,0.12852271,76500.0,76497.0,0.32153152]
[1731150866725,0.09732271,76499.0,76497.0,0.17772649]
[1731150866924,0.09732271,76498.0,76497.0,0.24304549]
[1731150869522,0.09732271,76498.0,76497.0,0.065319]
[1731150870331,0.09732271,76498.0,76497.0,0.063319]
[1731150870726,0.09732271,76498.0,76497.0,0.12711604]
[1731150871028,0.09732271,76498.0,76497.0,0.063319]
[1731150872631,0.13032271,76498.0,76497.0,0.063319]
[1731150873734,0.033,76498.0,76497.0,0.10253072]
[1731150876331,0.033,76498.0,76497.0,0.03921172]
[1731150876525,0.033,76498.0,76492.0,0.03921172]
[1731150876726,0.033,76498.0,76488.0,0.05228229]
[1731150876727,0.3608,76493.0,76488.0,0.03921172]
[1731150877029,0.13796984,76489.0,76486.0,0.03921172]
[1731150877228,0.13796984,76489.0,76485.0,0.10454072]
[1731150877430,0.3608,76486.0,76485.0,0.10454072]
[1731150877629,0.3608,76486.0,76485.0,0.065329]
[1731150879236,0.3608,76486.0,76485.0,0.10454072]
[1731150881829,0.38603881,76486.0,76485.0,0.065329]
[1731150885628,0.38603879,76486.0,76485.0,0.065329]
[1731150888648,0.28234777,76486.0,76485.0,0.16091825]
[1731150889129,0.28234777,76486.0,76485.0,0.27480437]
[1731150893437,0.28234777,76486.0,76485.0,0.16091825]
[1731150894225,0.28234777,76486.0,76485.0,0.23920445]
[1731150894425,0.28234777,76486.0,76485.0,0.2385802]
[1731150895829,0.28234777,76486.0,76485.0,0.1732512]
[1731150896030,0.28234777,76486.0,76475.0,0.09364]
[1731150896031,0.64314777,76486.0,76475.0,0.09364]
[1731150896236,0.28234777,76486.0,76485.0,0.07264384]
[1731150896436,0.64314777,76486.0,76485.0,0.07264384]
[1731150896740,0.64314777,76486.0,76485.0,0.13797284]
[1731150898040,0.66838588,76486.0,76485.0,0.13797284]
[1731150900845,0.66838588,76486.0,76485.0,0.20211143]
[1731150903049,0.64314777,76486.0,76485.0,0.20211143]
[1731150910458,0.64314777,76486.0,76485.0,0.065329]
[1731150910847,0.64314777,76486.0,76485.0,0.26780559]
[1731150911043,0.70048586,76486.0,76485.0,0.065329]
[1731150911454,0.77893809,76486.0,76485.0,0.065329]
[1731150912050,0.81093356,76486.0,76485.0,0.065329]
[1731150913957,0.87626156,76486.0,76485.0,0.065329]
[1731150915465,0.15466156,76486.0,76485.0,0.065329]
[1731150915765,0.87626156,76486.0,76485.0,0.065329]
[1731150916763,0.94198912,76486.0,76485.0,0.065329]
[1731150919068,0.22038912,76486.0,76485.0,0.065329]
[1731150919360,0.88475556,76486.0,76485.0,0.26747988]
[1731150920657,0.88475556,76486.0,76485.0,0.20215088]
[1731150921855,0.16315556,76486.0,76485.0,0.20215088]
[1731150922252,0.88475556,76486.0,76485.0,0.20215088]
[1731150923764,0.16315556,76486.0,76485.0,0.20215088]
[1731150923957,0.88475556,76486.0,76485.0,0.20215088]
[1731150925664,0.819028,76486.0,76485.0,0.20215088]
[1731150926055,0.819028,76486.0,76485.0,0.09222373]
[1731150927965,0.819028,76486.0,76485.0,0.17063628]
[1731150928761,0.097428,76486.0,76485.0,0.17063628]
[1731150928966,0.819028,76486.0,76485.0,0.17063628]
[1731150929264,0.819028,76486.0,76485.0,0.20223642]
[1731150934264,0.87626321,76486.0,76484.0,0.06533]
[1731150934573,0.77883521,76485.0,76484.0,0.06533]
[1731150934874,0.05723521,76485.0,76484.0,0.06533]
[1731150935267,0.77883521,76485.0,76484.0,0.06533]
[1731150936071,0.05723521,76485.0,76484.0,0.06533]
[1731150936270,0.77883521,76485.0,76484.0,0.06533]
[1731150937770,0.7468389,76485.0,76484.0,0.06533]
[1731150938683,0.8121679,76485.0,76484.0,0.06533]
[1731150941173,0.8121679,76485.0,76484.0,0.26730148]
[1731150941174,0.786929,76485.0,76484.0,0.26730148]
[1731150942874,0.786929,76485.0,76484.0,0.26730833]
[1731150944568,0.7216,76485.0,76484.0,0.26730833]
[1731150945782,0.7216,76485.0,76484.0,0.15747501]
[1731150947772,0.7216,76485.0,76484.0,0.15737542]
[1731150952686,0.7216,76485.0,76484.0,0.15735528]
[1731150953571,0.7216,76485.0,76484.0,0.09202528]
[1731150953773,0.7216,76485.0,76484.0,0.15735528]
[1731150954483,0.7216,76485.0,76484.0,0.09202528]
[1731150954678,0.7216,76485.0,76484.0,0.15735528]
[1731150955287,0.097429,76486.0,76485.0,0.065329]
[1731150955587,0.819029,76486.0,76485.0,0.15735428]
[1731150956474,0.819029,76486.0,76485.0,0.065329]
[1731150956475,0.84426763,76486.0,76485.0,0.065329]
[1731150957581,0.84426748,76486.0,76485.0,0.065329]
[1731150958775,0.12266748,76486.0,76485.0,0.065329]
[1731150958975,0.84426748,76486.0,76485.0,0.065329]
[1731150959686,0.87626346,76486.0,76485.0,0.065329]
[1731150959882,0.15466346,76486.0,76485.0,0.065329]
[1731150960180,0.87626346,76486.0,76485.0,0.065329]
[1731150960886,0.87626369,76486.0,76485.0,0.065329]
[1731150964284,0.819029,76486.0,76485.0,0.26687926]
[1731150965790,0.819029,76486.0,76485.0,0.26683276]
[1731150967590,0.7537,76486.0,76485.0,0.26683276]
[1731150970684,0.7537,76486.0,76485.0,0.2671644]
[1731150971094,0.0321,76486.0,76485.0,0.2671644]
[1731150971286,0.81904094,76486.0,76485.0,0.065329]
[1731150971487,0.8510357,76486.0,76485.0,0.065329]
[1731150972089,0.81093244,76486.0,76485.0,0.065329]
[1731150972294,0.77883244,76486.0,76485.0,0.065329]
[1731150972697,0.81893504,76486.0,76485.0,0.065329]
[1731150974093,0.77883244,76486.0,76485.0,0.065329]
[1731150975299,0.05723197,76486.0,76485.0,0.065329]
[1731150975597,0.74683747,76486.0,76485.0,0.065329]
[1731150975791,0.77883197,76486.0,76485.0,0.065329]
[1731150977299,0.05723197,76486.0,76485.0,0.065329]
[1731150977501,0.77883197,76486.0,76484.0,0.06533]
[1731150977694,0.05723197,76485.0,76484.0,0.06533]
[1731150977894,0.41803197,76485.0,76484.0,0.06533]
[1731150978696,0.05723197,76485.0,76484.0,0.06533]
[1731150978896,0.41803197,76485.0,76484.0,0.06533]
[1731150979202,0.45813488,76485.0,76484.0,0.06533]
[1731150979404,0.31503815,76485.0,76484.0,0.26725379]
[1731150980194,0.3608,76485.0,76484.0,0.26725379]
[1731150981799,0.3608,76485.0,76484.0,0.33989763]
[1731150982096,0.3608,76485.0,76484.0,0.23009397]
[1731150982305,0.3608,76485.0,76484.0,0.33955977]
[1731150983901,0.038,76489.0,76488.0,0.065327]
[1731150984098,0.7596,76489.0,76488.0,0.26691293]
[1731150985010,0.7596,76489.0,76488.0,0.26659917]
[1731150986409,0.85693393,76489.0,76488.0,0.065327]
[1731150990303,0.85693393,76489.0,76488.0,0.063327]
[1731150993514,0.75293722,76489.0,76488.0,0.13597084]
[1731150993907,0.72352246,76489.0,76488.0,0.13597084]
[1731150994410,0.7216,76489.0,76488.0,0.33727543]
[1731150995517,0.7216,76489.0,76488.0,0.40144878]
[1731150997205,0.3608,76489.0,76488.0,0.40144878]
[1731150998116,0.3608,76489.0,76488.0,0.79364878]
[1731150999218,0.3608,76489.0,76488.0,0.40144878]
[1731151001616,0.3608,76489.0,76488.0,0.20014419]
[1731151006827,0.31994625,76489.0,76488.0,0.20014419]
[1731151009027,0.29053177,76489.0,76488.0,0.20014419]
[1731151009426,0.34775621,76489.0,76488.0,0.20014419]
[1731151009817,0.31576592,76489.0,76488.0,0.20014419]
[1731151012931,0.34775565,76489.0,76488.0,0.20014419]
[1731151013727,0.34775521,76489.0,76488.0,0.20014419]
[1731151015129,0.34775521,76489.0,76488.0,0.12750035]
[1731151015328,0.34775521,76489.0,76488.0,0.20014419]
[1731151016438,0.2447764,76489.0,76488.0,0.40249206]
[1731151017532,0.2447764,76489.0,76488.0,0.32984822]
[1731151017742,0.2748764,76489.0,76488.0,0.40249206]
[1731151018430,0.2748764,76489.0,76488.0,0.29183744]
[1731151018734,0.2748764,76489.0,76488.0,0.40113229]
[1731151020834,0.2748764,76489.0,76488.0,0.32848845]
[1731151021040,0.2748764,76489.0,76488.0,0.21924957]
[1731151021346,0.2748764,76489.0,76488.0,0.32861113]
[1731151021953,0.2748764,76489.0,76488.0,0.32864039]
[1731151024445,0.33210235,76489.0,76488.0,0.12750035]
[1731151031449,0.33210102,76489.0,76488.0,0.12750035]
[1731151031649,0.23565697,76489.0,76488.0,0.45674332]
[1731151031957,0.2062424,76489.0,76488.0,0.45674332]
[1731151032149,0.16538882,76489.0,76488.0,0.45674332]
[1731151033045,0.0373,76490.0,76488.0,0.45674332]
[1731151033046,0.0061,76490.0,76488.0,0.45674332]
[1731151033352,0.0061,76490.0,76489.0,0.40188681]
[1731151033553,0.0061,76491.0,76490.0,0.065325]
[1731151033848,0.0061,76491.0,76490.0,0.26713085]
[1731151037045,0.0061,76491.0,76490.0,0.065325]
[1731151037248,0.0061,76491.0,76490.0,0.2663198]
[1731151037641,0.0061,76491.0,76490.0,0.35777122]
[1731151038447,0.0061,76491.0,76490.0,0.35782348]
[1731151038750,0.0061,76491.0,76490.0,0.39375408]
[1731151039652,0.0061,76491.0,76490.0,0.15704515]
[1731151041048,0.0061,76491.0,76490.0,0.1573462]
[1731151041557,0.3669,76491.0,76490.0,0.1205053]
[1731151041853,0.3669,76491.0,76490.0,0.0421212]
[1731151042050,0.3669,76491.0,76490.0,0.10744413]
[1731151042445,0.3669,76491.0,76490.0,0.06532293]
[1731151043051,0.3669,76491.0,76488.0,0.06417335]
[1731151043052,0.3669,76491.0,76489.0,0.06532293]
[1731151043450,0.3669,76491.0,76489.0,0.13796677]
[1731151043645,0.3669,76491.0,76489.0,0.07264384]
[1731151044049,0.3608,76490.0,76489.0,0.07264384]
[1731151046759,0.38603562,76490.0,76489.0,0.07264384]
[1731151048160,0.38603562,76490.0,76489.0,0.13796984]
[1731151049555,0.41802777,76490.0,76489.0,0.13796984]
[1731151049758,0.38603562,76490.0,76489.0,0.13796984]
[1731151050063,0.41802777,76490.0,76489.0,0.13796984]
[1731151050259,0.41802777,76490.0,76489.0,0.11396984]
[1731151054658,0.3608,76490.0,76489.0,0.11396984]
[1731151061668,0.3608,76490.0,76489.0,0.20694504]
[1731151065974,0.3608,76490.0,76489.0,0.1583012]
[1731151066271,0.3608,76490.0,76489.0,0.23094504]
[1731151068460,0.0061,76491.0,76489.0,0.23094504]
[1731151068664,0.3669,76491.0,76490.0,0.0929752]
[1731151068869,0.3669,76491.0,76490.0,0.1583002]
[1731151069570,0.3669,76491.0,76490.0,0.15842157]
[1731151070276,0.3669,76491.0,76490.0,0.23680567]
[1731151071269,0.3669,76491.0,76490.0,0.15842157]
[1731151072679,0.3669,76491.0,76490.0,0.26942192]
[1731151074373,0.3669,76491.0,76490.0,0.2698269]
[1731151076784,0.42412736,76491.0,76490.0,0.065325]
[1731151079175,0.3669,76491.0,76490.0,0.065325]
[1731151079481,0.4241282,76491.0,76490.0,0.065325]
[1731151082001,0.3669,76491.0,76490.0,0.065325]
[1731151082788,0.065325,76490.0,76488.0,0.065326]
[1731151083091,0.09732915,76489.0,76488.0,0.065326]
[1731151084091,0.44050385,76491.0,76489.0,0.065326]
[1731151084288,0.43954384,76491.0,76490.0,0.20442877]
[1731151085078,0.43954384,76491.0,76490.0,0.26975377]
[1731151088893,0.50486784,76491.0,76490.0,0.26975377]
[1731151089088,0.50486784,76491.0,76490.0,0.15858793]
[1731151091381,0.50486784,76491.0,76490.0,0.26927534]
[1731151091591,0.50486784,76491.0,76490.0,0.15858793]
[1731151095292,0.50486784,76491.0,76490.0,0.13458793]
[1731151097189,0.14406784,76491.0,76490.0,0.13458793]
[1731151097486,0.50486784,76491.0,76490.0,0.13458793]
[1731151098597,0.50486784,76491.0,76490.0,0.065325]
[1731151098791,0.43954384,76491.0,76490.0,0.065325]
[1731151099096,0.46478052,76491.0,76490.0,0.065325]
[1731151101294,0.39213668,76491.0,76490.0,0.065325]
[1731151103188,0.39213629,76491.0,76490.0,0.065325]
[1731151106202,0.42412931,76491.0,76490.0,0.065325]
[1731151107094,0.42412931,76491.0,76490.0,0.17626546]
[1731151107095,0.3669,76491.0,76490.0,0.17626546]
[1731151107505,0.3669,76491.0,76490.0,0.17626615]
[1731151107802,0.3669,76491.0,76490.0,0.097725]
[1731151108103,0.3669,76491.0,76490.0,0.28103305]
[1731151110298,0.3669,76491.0,76490.0,0.37462159]
[1731151111199,0.3669,76491.0,76490.0,0.38129259]
[1731151111704,0.3669,76491.0,76490.0,0.38128909]
[1731151112015,0.3669,76491.0,76490.0,0.37462159]
[1731151112399,0.3669,76491.0,76490.0,0.38129852]
[1731151112604,0.3669,76491.0,76490.0,0.38202494]
[1731151112803,0.3669,76491.0,76490.0,0.3093811]
[1731151113006,0.3669,76491.0,76490.0,0.38202494]
[1731151114107,0.37836882,76491.0,76490.0,0.17704577]
[1731151114310,0.34637785,76491.0,76490.0,0.17704577]
[1731151115109,0.02523469,76491.0,76490.0,0.17704577]
[1731151117307,0.3608,76493.0,76492.0,0.065323]
[1731151117711,0.3608,76493.0,76492.0,0.07197762]
[1731151119011,0.39279044,76493.0,76492.0,0.07197762]
[1731151120216,0.39279032,76493.0,76492.0,0.065323]
[1731151120709,0.3608,76493.0,76492.0,0.07197162]
[1731151122016,0.3608,76493.0,76492.0,0.15870254]
[1731151122309,0.3608,76493.0,76492.0,0.16534698]
[1731151122717,0.3608,76493.0,76492.0,1.66534698]
[1731151123218,0.0061,76494.0,76492.0,1.66534698]
[1731151123518,0.0061,76494.0,76493.0,0.10002398]
[1731151123713,0.3608,76495.0,76494.0,0.065322]
[1731151124014,0.3608,76495.0,76494.0,0.23798982]
[1731151124612,0.3608,76495.0,76494.0,0.23811657]
[1731151127412,0.3608,76495.0,76494.0,0.17279457]
[1731151127723,0.3608,76495.0,76494.0,0.23132796]
[1731151128147,0.0061,76499.0,76494.0,0.16600596]
[1731151128374,0.0061,76499.0,76498.0,0.13796184]
[1731151128542,0.0061,76504.0,76499.0,0.065317]
[1731151128737,0.0061,76504.0,76503.0,0.07264384]
[1731151128925,0.72256001,76505.0,76503.0,0.07264384]
[1731151129130,0.09731931,76504.0,76503.0,0.07264384]
[1731151129336,0.45811931,76504.0,76503.0,0.07264384]
[1731151129837,0.09731931,76504.0,76503.0,0.07264384]
[1731151130039,0.45811931,76504.0,76503.0,0.07264384]
[1731151131917,0.49051931,76504.0,76503.0,0.07264384]
[1731151132316,0.12971931,76504.0,76503.0,0.07264384]
[1731151132629,0.49051931,76504.0,76503.0,0.07264384]
[1731151132813,0.49051931,76504.0,76503.0,0.1391104]
[1731151133716,0.49051931,76504.0,76503.0,0.2044244]
[1731151134536,0.68061938,76504.0,76503.0,0.2044244]
[1731151134732,0.63376796,76504.0,76503.0,0.2044244]
[1731151135025,0.49051931,76504.0,76503.0,0.2044244]
[1731151137125,0.3932,76504.0,76503.0,0.2044244]
[1731151137319,0.3932,76504.0,76503.0,0.25666362]
[1731151138118,0.0324,76504.0,76503.0,0.25666362]
[1731151138319,0.3932,76504.0,76503.0,0.25666362]
[1731151138515,0.3932,76504.0,76503.0,0.2044244]
[1731151139518,0.0324,76504.0,76503.0,0.2044244]
[1731151139722,0.3932,76504.0,76503.0,0.2044244]
[1731151142523,0.0324,76504.0,76503.0,0.2044244]
[1731151142726,0.3932,76504.0,76503.0,0.2044244]
[1731151148632,0.0324,76504.0,76503.0,0.2044244]
[1731151148826,0.3932,76504.0,76503.0,0.2044244]
[1731151149725,0.0324,76504.0,76503.0,0.29950125]
[1731151149925,0.0324,76504.0,76503.0,0.30650245]
[1731151150135,0.3932,76504.0,76503.0,0.30650245]
[1731151152424,0.3932,76504.0,76503.0,0.2114256]
[1731151153021,0.3932,76504.0,76503.0,0.13878176]
[1731151154724,0.49051322,76504.0,76503.0,0.13878176]
[1731151155133,0.49051322,76504.0,76503.0,0.13178056]
[1731151155337,0.49051322,76504.0,76503.0,0.10778056]
[1731151155728,0.49051322,76504.0,76503.0,0.11458198]
[1731151156440,0.45811322,76504.0,76503.0,0.11458198]
[1731151156636,0.45811558,76504.0,76503.0,0.11458198]
[1731151156936,0.45811558,76504.0,76503.0,0.10778056]
[1731151159432,0.3608,76504.0,76503.0,0.10778056]
[1731151168140,0.45811926,76504.0,76503.0,0.10778056]
[1731151170339,0.45811926,76504.0,76503.0,0.08378056]
[1731151171953,0.45811886,76504.0,76503.0,0.08378056]
[1731151173343,0.45811886,76504.0,76503.0,0.065314]
[1731151173741,0.5307627,76504.0,76503.0,0.065314]
[1731151174744,0.43344384,76504.0,76503.0,0.065314]
[1731151174943,0.07264384,76504.0,76503.0,0.065314]
[1731151175142,0.43344384,76504.0,76503.0,0.065314]
[1731151182857,0.79424384,76504.0,76503.0,0.065314]
[1731151185252,0.79424384,76504.0,76503.0,0.041314]
[1731151185448,0.07264384,76504.0,76503.0,0.041314]
[1731151185760,0.79424384,76504.0,76503.0,0.041314]
[1731151186953,0.07264384,76504.0,76503.0,0.041314]
[1731151187160,0.79424384,76504.0,76503.0,0.041314]
[1731151189855,0.8514674,76504.0,76503.0,0.041314]
[1731151193057,0.1298674,76504.0,76503.0,0.041314]
[1731151193258,0.89156448,76504.0,76503.0,0.041314]
[1731151196872,0.79424384,76504.0,76503.0,0.041314]
[1731151197366,0.07264384,76504.0,76503.0,0.041314]
[1731151197563,0.79424384,76504.0,76503.0,0.041314]
[1731151199661,0.07264384,76504.0,76503.0,0.041314]
[1731151199860,0.79424384,76504.0,76503.0,0.041314]
[1731151200465,0.79424384,76504.0,76501.0,0.06455945]
[1731151200668,0.79424384,76504.0,76499.0,0.07144207]
[1731151200870,0.07264384,76504.0,76499.0,0.07144207]
[1731151201062,0.3608,76500.0,76499.0,0.13675907]
[1731151201265,0.3608,76500.0,76499.0,0.13065907]
[1731151201463,0.79520385,76504.0,76502.0,0.065314]
[1731151201665,0.79424384,76504.0,76502.0,0.065314]
[1731151201855,0.79424384,76504.0,76499.0,0.06534207]
[1731151202060,0.07264384,76504.0,76503.0,0.065314]
[1731151202261,0.79424384,76504.0,76503.0,0.065314]
[1731151203368,0.85955684,76504.0,76503.0,0.065314]
[1731151204963,0.95687864,76504.0,76503.0,0.065314]
[1731151209360,0.95687957,76504.0,76503.0,0.065314]
[1731151210366,0.95687957,76504.0,76499.0,0.065523]
[1731151210571,0.09732273,76503.0,76498.0,0.071418]
[1731151210762,0.09732273,76502.0,76499.0,0.065317]
[1731151211079,0.09732273,76501.0,76499.0,0.065317]
[1731151211370,0.09732273,76500.0,76499.0,0.065317]
[1731151211762,0.86055684,76504.0,76499.0,0.065317]
[1731151211966,0.85955684,76504.0,76503.0,0.0522827]
[1731151212164,0.85955684,76504.0,76500.0,0.065316]
[1731151212364,0.85955684,76504.0,76503.0,0.05228247]
[1731151219869,0.85955684,76504.0,76501.0,0.065316]
[1731151219870,0.9568786,76504.0,76501.0,0.065316]
[1731151220069,0.09732176,76503.0,76501.0,0.065316]
[1731151220370,0.81892176,76502.0,76501.0,0.065316]
[1731151223477,0.09732176,76502.0,76501.0,0.065316]
[1731151223783,0.45812176,76502.0,76501.0,0.065316]
[1731151226775,0.3608,76502.0,76501.0,0.065316]
[1731151229783,0.3608,76502.0,76501.0,1.565316]
[1731151230481,0.3608,76502.0,76501.0,0.13795984]
[1731151232785,0.3608,76502.0,76501.0,0.14435281]
[1731151234279,0.3608,76502.0,76501.0,0.13795984]
[1731151235280,0.3608,76502.0,76501.0,0.2984668]
[1731151235982,0.3608,76502.0,76501.0,0.13795984]
[1731151236185,0.3608,76502.0,76501.0,0.20330191]
[1731151236384,0.3608,76502.0,76501.0,0.13795984]
[1731151236584,0.3608,76502.0,76501.0,0.20330191]
[1731151237391,0.3608,76502.0,76501.0,0.13795984]
[1731151238883,0.3608,76502.0,76501.0,0.20330191]
[1731151239090,0.3608,76502.0,76501.0,0.13795984]
[1731151239594,0.3608,76502.0,76501.0,0.2984521]
[1731151239786,0.3608,76502.0,76501.0,0.29847767]
[1731151239985,0.3608,76502.0,76501.0,0.20330191]
[1731151240187,0.3608,76502.0,76501.0,0.29843349]
[1731151240394,0.3608,76502.0,76501.0,0.20330191]
[1731151241286,0.3608,76502.0,76501.0,0.29856559]
[1731151241492,0.3608,76502.0,76501.0,0.20330191]
[1731151241691,0.3608,76502.0,76501.0,0.13795984]
[1731151241894,0.45811597,76502.0,76501.0,0.13795984]
[1731151242789,0.45811572,76502.0,76501.0,0.13795984]
[1731151249904,0.3608,76502.0,76501.0,0.13795984]
[1731151252699,0.3608,76502.0,76501.0,0.065316]
[1731151252907,0.3608,76502.0,76501.0,0.13795984]
[1731151254408,0.3608,76502.0,76501.0,0.20330191]
[1731151254600,0.3608,76502.0,76501.0,0.13795984]
[1731151255697,0.3608,76502.0,76501.0,0.29837681]
[1731151255909,0.3608,76502.0,76501.0,0.29835552]
[1731151257001,0.45811458,76502.0,76501.0,0.13795984]
[1731151257403,0.45811851,76502.0,76501.0,0.13795984]
[1731151261811,0.38603322,76502.0,76501.0,0.14440593]
[1731151265109,0.3608,76502.0,76501.0,0.14440593]
[1731151265519,0.79528385,76506.0,76503.0,0.065314]
[1731151265710,0.79424384,76506.0,76504.0,0.00644609]
[1731151265910,0.07264384,76506.0,76505.0,0.00644609]
[1731151266114,0.79424384,76506.0,76505.0,0.00644609]
[1731151266909,0.79424384,76506.0,76504.0,0.065313]
[1731151268010,0.3608,76505.0,76504.0,0.065313]
[1731151272028,0.45811836,76505.0,76504.0,0.065313]
[1731151272722,0.09731836,76505.0,76504.0,0.065313]
[1731151273132,0.45811836,76505.0,76504.0,0.065313]
[1731151273840,0.52343136,76505.0,76497.0,0.0061]
[1731151274033,0.09731836,76504.0,76500.0,0.065316]
[1731151274228,0.09731836,76503.0,76500.0,0.065316]
[1731151274425,0.09731836,76502.0,76500.0,0.065316]
[1731151274622,0.09731836,76501.0,76500.0,0.065316]
[1731151275035,0.09731836,76501.0,76498.0,0.065318]
[1731151275236,0.09731836,76500.0,76499.0,0.063317]
[1731151275535,0.45811836,76500.0,76499.0,0.063317]
[1731151277832,0.38603318,76500.0,76499.0,0.063317]
[1731151278037,0.41802224,76500.0,76499.0,0.063317]
[1731151280033,0.3608,76500.0,76499.0,0.063317]
[1731151282332,0.065319,76497.0,76496.0,0.06532078]
[1731151282733,0.065319,76497.0,76495.0,0.06532]
[1731151282734,0.065319,76497.0,76495.0,0.13064078]
[1731151282933,0.065319,76497.0,76496.0,0.06532078]
[1731151283135,0.065319,76497.0,76495.0,0.13064078]
[1731151283343,0.13796284,76497.0,76495.0,0.13064078]
[1731151286333,0.13796284,76497.0,76496.0,0.06532078]
[1731151286537,0.13796284,76497.0,76495.0,0.13064078]
[1731151287145,0.09732441,76496.0,76495.0,0.06532]
[1731151287841,0.45812441,76496.0,76495.0,0.06532]
[1731151288452,0.4180258,76496.0,76495.0,0.06532]
[1731151292946,0.0572258,76496.0,76495.0,0.06532]
[1731151293152,0.4180258,76496.0,76495.0,0.06532]
[1731151293941,0.0572258,76496.0,76495.0,0.06532]
[1731151294146,0.52344441,76496.0,76495.0,0.06532]
[1731151294346,0.52344468,76496.0,76495.0,0.06532]
[1731151295249,0.34767927,76496.0,76495.0,0.27414925]
[1731151297544,0.42612,76496.0,76495.0,0.27414925]
[1731151298656,0.06532,76496.0,76495.0,0.27414925]
[1731151298948,0.42612,76496.0,76495.0,0.27414925]
[1731151299154,0.49876384,76496.0,76495.0,0.09527048]
[1731151299355,0.49876384,76496.0,76495.0,0.09483121]
[1731151301753,0.85956384,76496.0,76495.0,0.09483121]
[1731151302252,0.065322,76494.0,76493.0,0.0061]
[1731151302445,0.065322,76493.0,76492.0,0.05224515]
[1731151302649,0.065322,76493.0,76488.0,0.071427]
[1731151302650,0.79524384,76496.0,76491.0,0.03918116]
[1731151302872,0.07264384,76492.0,76491.0,0.03918116]
[1731151303051,0.07264384,76492.0,76484.0,0.0061]
[1731151303052,0.07264384,76492.0,76490.0,0.03918116]
[1731151303353,0.0061,76495.0,76489.0,0.03918116]